[Event "Titled Tuesday Blitz February 07 Late 2023"]
[White "Tan, Zhongyi"]
[Black "TheKnightOfBosnia"]
[WhiteFideId "8603642"]
[WhiteElo "2517"]
[BlackElo "2526"]
[Result "1-0"]
[Round "06"]
[TimeControl "180+2"]
[Date "2023.02.07"]
[WhiteClock "0:00:07"]
[BlackClock "0:00:04"]

1. d4 {[%clk 0:03:00]}  Nf6 {[%clk 0:03:00]} 2. c4 {[%clk 0:03:00]}  e6 {[%clk 0:03:00]} 3. g3 {[%clk 0:02:59]}  Bb4+ {[%clk 0:03:00]} 4. Nd2 {[%clk 0:02:58]}  O-O {[%clk 0:03:00]} 5. Bg2 {[%clk 0:02:58]}  Nc6 {[%clk 0:02:40]} 6. Nf3 {[%clk 0:02:58]}  d5 {[%clk 0:02:40]} 7. a3 {[%clk 0:02:44]}  Bxd2+ {[%clk 0:02:38]} 8. Bxd2 {[%clk 0:02:45]}  dxc4 {[%clk 0:02:33]} 9. e3 {[%clk 0:02:45]}  b5 {[%clk 0:02:30]} 10. a4 {[%clk 0:02:41]}  b4 {[%clk 0:02:24]} 11. O-O {[%clk 0:02:33]}  Rb8 {[%clk 0:02:22]} 12. Qc2 {[%clk 0:02:20]}  Ba6 {[%clk 0:02:22]} 13. Rfc1 {[%clk 0:02:20]}  b3 {[%clk 0:02:19]} 14. Qd1 {[%clk 0:02:16]}  Ne4 {[%clk 0:02:13]} 15. Be1 {[%clk 0:01:58]}  Qd6 {[%clk 0:01:54]} 16. Bf1 {[%clk 0:01:42]}  Qd5 {[%clk 0:01:47]} 17. Bg2 {[%clk 0:01:39]}  Qd6 {[%clk 0:01:45]} 18. Bf1 {[%clk 0:01:05]}  Qd5 {[%clk 0:01:45]} 19. Bg2 {[%clk 0:01:05]}  Rfd8 {[%clk 0:01:46]} 20. Nd2 {[%clk 0:00:59]}  f5 {[%clk 0:01:40]} 21. Nxe4 {[%clk 0:00:59]}  fxe4 {[%clk 0:01:38]} 22. Qg4 {[%clk 0:00:58]}  Qf5 {[%clk 0:01:20]} 23. Qh4 {[%clk 0:00:58]}  g5 {[%clk 0:00:53]} 24. Qxe4 {[%clk 0:00:52]}  Qxe4 {[%clk 0:00:53]} 25. Bxe4 {[%clk 0:00:53]}  Ne7 {[%clk 0:00:47]} 26. Bg2 {[%clk 0:00:52]}  Nd5 {[%clk 0:00:44]} 27. Bf1 {[%clk 0:00:51]}  c3 {[%clk 0:00:35]} 28. Bxc3 {[%clk 0:00:50]}  Bxf1 {[%clk 0:00:34]} 29. Kxf1 {[%clk 0:00:51]}  Rb7 {[%clk 0:00:28]} 30. Ke2 {[%clk 0:00:46]}  Kf7 {[%clk 0:00:27]} 31. Bd2 {[%clk 0:00:44]}  Rd6 {[%clk 0:00:24]} 32. Rc5 {[%clk 0:00:41]}  Ra6 {[%clk 0:00:21]} 33. a5 {[%clk 0:00:40]}  Ke7 {[%clk 0:00:19]} 34. e4 {[%clk 0:00:36]}  Nf6 {[%clk 0:00:16]} 35. Bxg5 {[%clk 0:00:36]}  h6 {[%clk 0:00:14]} 36. Bxf6+ {[%clk 0:00:33]}  Kxf6 {[%clk 0:00:14]} 37. Rac1 {[%clk 0:00:32]}  Rb4 {[%clk 0:00:13]} 38. Kd3 {[%clk 0:00:30]}  Ra4 {[%clk 0:00:11]} 39. Rxc7 {[%clk 0:00:26]}  R4xa5 {[%clk 0:00:11]} 40. e5+ {[%clk 0:00:23]}  Kf5 {[%clk 0:00:10]} 41. Rf7+ {[%clk 0:00:23]}  Kg4 {[%clk 0:00:11]} 42. Rf4+ {[%clk 0:00:20]}  Kh3 {[%clk 0:00:10]} 43. Rg1 {[%clk 0:00:20]}  Kxh2 {[%clk 0:00:11]} 44. Rb1 {[%clk 0:00:18]}  Kg2 {[%clk 0:00:08]} 45. Rf6 {[%clk 0:00:16]}  Ra2 {[%clk 0:00:07]} 46. g4 {[%clk 0:00:15]}  Ra1 {[%clk 0:00:05]} 47. Rxa1 {[%clk 0:00:14]}  Rxa1 {[%clk 0:00:05]} 48. Kc3 {[%clk 0:00:15]}  Rd1 {[%clk 0:00:04]} 49. f4 {[%clk 0:00:12]}  a5 {[%clk 0:00:04]} 50. Rxe6 {[%clk 0:00:08]}  Kf3 {[%clk 0:00:03]} 51. f5 {[%clk 0:00:07]}  Ke4 {[%clk 0:00:03]} 52. f6 {[%clk 0:00:07]}  Rd3+ {[%clk 0:00:03]} 53. Kc4 {[%clk 0:00:07]}  Rxd4+ {[%clk 0:00:03]} 54. Kxb3 {[%clk 0:00:08]}  Rd3+ {[%clk 0:00:04]} 55. Kc2 {[%clk 0:00:07]}  Rf3 {[%clk 0:00:04]} 56. Re7 {[%clk 0:00:07]}  Kd5 {[%clk 0:00:03]} 57. f7 {[%clk 0:00:07]}  Kc4 {[%clk 0:00:03]} 58. e6 {[%clk 0:00:07]}  Rf2+ {[%clk 0:00:03]} 59. Kb1 {[%clk 0:00:07]}  Kb3 {[%clk 0:00:04]} 60. Rb7+ {[%clk 0:00:07]}  Ka4 {[%clk 0:00:04]} 61. e7 {[%clk 0:00:07]}  Rxf7 {[%clk 0:00:04]} 62. e8=Q+ {[%clk 0:00:07]} 1-0


[Site "https://www.chess.com"]

[Event "Titled Tuesday Blitz February 07 Late 2023"]
[White "Kokoszczynski, Jan"]
[Black "Taspinar, Yanki"]
[WhiteFideId "1174460"]
[BlackFideId "34561188"]
[WhiteElo "2247"]
[BlackElo "2262"]
[Result "0-1"]
[Round "06"]
[TimeControl "180+2"]
[Date "2023.02.07"]
[WhiteClock "0:00:05"]
[BlackClock "0:00:03"]

1. e4 {[%clk 0:03:00]}  c6 {[%clk 0:02:55]} 2. d4 {[%clk 0:03:00]}  d5 {[%clk 0:02:56]} 3. exd5 {[%clk 0:03:01]}  cxd5 {[%clk 0:02:56]} 4. Bd3 {[%clk 0:03:01]}  Nf6 {[%clk 0:02:56]} 5. c3 {[%clk 0:03:01]}  g6 {[%clk 0:02:55]} 6. Bf4 {[%clk 0:03:01]}  Bg7 {[%clk 0:02:56]} 7. Nf3 {[%clk 0:03:01]}  O-O {[%clk 0:02:56]} 8. O-O {[%clk 0:03:01]}  Nc6 {[%clk 0:02:56]} 9. Nbd2 {[%clk 0:03:01]}  Bg4 {[%clk 0:02:52]} 10. h3 {[%clk 0:02:59]}  Bxf3 {[%clk 0:02:53]} 11. Nxf3 {[%clk 0:02:59]}  e6 {[%clk 0:02:53]} 12. Qd2 {[%clk 0:02:55]}  Rc8 {[%clk 0:02:51]} 13. Bh6 {[%clk 0:02:54]}  a6 {[%clk 0:02:47]} 14. Bxg7 {[%clk 0:02:47]}  Kxg7 {[%clk 0:02:46]} 15. Rfe1 {[%clk 0:02:41]}  Qd6 {[%clk 0:02:38]} 16. Ne5 {[%clk 0:02:40]}  Rc7 {[%clk 0:02:25]} 17. Re3 {[%clk 0:02:27]}  b5 {[%clk 0:02:20]} 18. a4 {[%clk 0:02:20]}  Na5 {[%clk 0:02:14]} 19. Qe2 {[%clk 0:02:18]}  Nb3 {[%clk 0:02:06]} 20. Re1 {[%clk 0:02:15]}  bxa4 {[%clk 0:02:01]} 21. Bxa6 {[%clk 0:02:13]}  a3 {[%clk 0:01:52]} 22. bxa3 {[%clk 0:02:12]}  Qxa3 {[%clk 0:01:53]} 23. h4 {[%clk 0:01:57]}  Ra8 {[%clk 0:01:41]} 24. Bb5 {[%clk 0:01:56]}  Rac8 {[%clk 0:01:34]} 25. c4 {[%clk 0:01:37]}  Rb8 {[%clk 0:00:29]} 26. Qd3 {[%clk 0:01:06]}  dxc4 {[%clk 0:00:25]} 27. Bxc4 {[%clk 0:01:04]}  Nd5 {[%clk 0:00:25]} 28. Bxb3 {[%clk 0:00:42]}  Nxe3 {[%clk 0:00:25]} 29. Rxe3 {[%clk 0:00:43]}  Qa1+ {[%clk 0:00:09]} 30. Kh2 {[%clk 0:00:43]}  Rd8 {[%clk 0:00:08]} 31. Nf3 {[%clk 0:00:24]}  Rc1 {[%clk 0:00:06]} 32. Qe4 {[%clk 0:00:21]}  Rh1+ {[%clk 0:00:03]} 33. Kg3 {[%clk 0:00:21]}  Qa7 {[%clk 0:00:03]} 34. Qe5+ {[%clk 0:00:21]}  Kg8 {[%clk 0:00:03]} 35. Qf6 {[%clk 0:00:20]}  Rf8 {[%clk 0:00:02]} 36. Ne5 {[%clk 0:00:18]}  Qxd4 {[%clk 0:00:01]} 37. Ng4 {[%clk 0:00:10]}  Qxf6 {[%clk 0:00:01]} 38. Nxf6+ {[%clk 0:00:11]}  Kg7 {[%clk 0:00:02]} 39. Ng4 {[%clk 0:00:11]}  Rb1 {[%clk 0:00:02]} 40. Bc2 {[%clk 0:00:11]}  Rc1 {[%clk 0:00:03]} 41. Bb3 {[%clk 0:00:11]}  Rfc8 {[%clk 0:00:03]} 42. Ne5 {[%clk 0:00:09]}  R8c3 {[%clk 0:00:03]} 43. Ba4 {[%clk 0:00:08]}  Rxe3+ {[%clk 0:00:03]} 44. fxe3 {[%clk 0:00:09]}  Rc3 {[%clk 0:00:04]} 45. Kf3 {[%clk 0:00:08]}  f6 {[%clk 0:00:04]} 46. Ng4 {[%clk 0:00:07]}  e5 {[%clk 0:00:03]} 47. Bb5 {[%clk 0:00:05]}  Ra3 {[%clk 0:00:03]} 48. Bc6 {[%clk 0:00:05]}  Kf7 {[%clk 0:00:03]} 49. Nf2 {[%clk 0:00:05]}  Ke6 {[%clk 0:00:03]} 50. Be8 {[%clk 0:00:05]}  f5 {[%clk 0:00:03]} 51. g4 {[%clk 0:00:04]}  f4 {[%clk 0:00:03]} 52. Nd1 {[%clk 0:00:03]}  Ra1 {[%clk 0:00:01]} 53. Nc3 {[%clk 0:00:03]}  Ra3 {[%clk 0:00:01]} 54. Nd1 {[%clk 0:00:03]}  Ke7 {[%clk 0:00:01]} 55. Bc6 {[%clk 0:00:03]}  h6 {[%clk 0:00:02]} 56. g5 {[%clk 0:00:01]}  hxg5 {[%clk 0:00:02]} 57. hxg5 {[%clk 0:00:02]}  Kd6 {[%clk 0:00:02]} 58. Be4 {[%clk 0:00:03]}  Ra1 {[%clk 0:00:01]} 59. Nf2 {[%clk 0:00:03]}  Ra3 {[%clk 0:00:01]} 60. Ng4 {[%clk 0:00:04]}  fxe3 {[%clk 0:00:01]} 61. Nxe3 {[%clk 0:00:04]}  Ke6 {[%clk 0:00:02]} 62. Bxg6 {[%clk 0:00:04]}  Ra4 {[%clk 0:00:02]} 63. Be4 {[%clk 0:00:05]}  Kf7 {[%clk 0:00:02]} 64. Nd5 {[%clk 0:00:04]}  Kg7 {[%clk 0:00:03]} 65. Nc3 {[%clk 0:00:04]}  Rc4 {[%clk 0:00:03]} 66. Ne2 {[%clk 0:00:04]}  Ra4 {[%clk 0:00:03]} 67. Ng3 {[%clk 0:00:04]}  Rb4 {[%clk 0:00:03]} 68. Kg4 {[%clk 0:00:05]}  Kf7 {[%clk 0:00:03]} 69. Kf5 {[%clk 0:00:05]}  Rb5 {[%clk 0:00:03]} 70. Nh5 {[%clk 0:00:05]}  Ke7 {[%clk 0:00:03]} 71. g6 {[%clk 0:00:05]}  Rb1 {[%clk 0:00:04]} 72. Kg5 {[%clk 0:00:04]}  Rg1+ {[%clk 0:00:05]} 73. Kh6 {[%clk 0:00:05]}  Rg4 {[%clk 0:00:03]} 74. Bd5 {[%clk 0:00:05]}  e4 {[%clk 0:00:03]} 75. g7 {[%clk 0:00:05]}  e3 {[%clk 0:00:03]} 76. g8=Q {[%clk 0:00:05]}  Rxg8 {[%clk 0:00:03]} 77. Bxg8 {[%clk 0:00:06]}  e2 {[%clk 0:00:04]} 78. Nf4 {[%clk 0:00:02]}  e1=Q {[%clk 0:00:04]} 79. Kg7 {[%clk 0:00:03]}  Qg3+ {[%clk 0:00:04]} 80. Ng6+ {[%clk 0:00:03]}  Kd7 {[%clk 0:00:04]} 81. Bf7 {[%clk 0:00:03]}  Kd6 {[%clk 0:00:03]} 82. Kf6 {[%clk 0:00:03]}  Qc3+ {[%clk 0:00:04]} 83. Kg5 {[%clk 0:00:03]}  Qe3+ {[%clk 0:00:04]} 84. Kf5 {[%clk 0:00:04]}  Qf3+ {[%clk 0:00:03]} 85. Nf4 {[%clk 0:00:04]}  Ke7 {[%clk 0:00:03]} 86. Bd5 {[%clk 0:00:04]}  Qf2 {[%clk 0:00:03]} 87. Be4 {[%clk 0:00:05]}  Kd6 {[%clk 0:00:03]} 88. Bd5 {[%clk 0:00:04]}  Kc5 {[%clk 0:00:03]} 89. Be4 {[%clk 0:00:05]}  Kd4 {[%clk 0:00:03]} 0-1


[Site "https://www.chess.com"]

[Event "Titled Tuesday Blitz February 07 Late 2023"]
[White "Seletsky, Grigory"]
[Black "Preotu, Razvan"]
[WhiteFideId "14112191"]
[BlackFideId "2613280"]
[WhiteElo "2259"]
[BlackElo "2475"]
[Result "0-1"]
[Round "06"]
[TimeControl "180+2"]
[Date "2023.02.07"]
[WhiteClock "0:00:42"]
[BlackClock "0:00:04"]

1. d4 {[%clk 0:02:55]}  Nf6 {[%clk 0:02:59]} 2. Nf3 {[%clk 0:02:54]}  g6 {[%clk 0:03:00]} 3. Bg5 {[%clk 0:02:54]}  Bg7 {[%clk 0:03:00]} 4. c3 {[%clk 0:02:55]}  O-O {[%clk 0:02:58]} 5. Nbd2 {[%clk 0:02:55]}  d6 {[%clk 0:02:56]} 6. e4 {[%clk 0:02:56]}  c5 {[%clk 0:02:56]} 7. dxc5 {[%clk 0:02:56]}  dxc5 {[%clk 0:02:57]} 8. Be2 {[%clk 0:02:55]}  Nc6 {[%clk 0:02:57]} 9. O-O {[%clk 0:02:56]}  Qc7 {[%clk 0:02:53]} 10. Qc2 {[%clk 0:02:54]}  h6 {[%clk 0:02:52]} 11. Bh4 {[%clk 0:02:55]}  Nh5 {[%clk 0:02:52]} 12. Bg3 {[%clk 0:02:55]}  Nxg3 {[%clk 0:02:51]} 13. hxg3 {[%clk 0:02:55]}  Rb8 {[%clk 0:02:46]} 14. a4 {[%clk 0:02:56]}  a6 {[%clk 0:02:46]} 15. Nc4 {[%clk 0:02:52]}  b5 {[%clk 0:02:45]} 16. axb5 {[%clk 0:02:52]}  axb5 {[%clk 0:02:45]} 17. Ne3 {[%clk 0:02:51]}  e6 {[%clk 0:02:46]} 18. Rfd1 {[%clk 0:02:48]}  Rd8 {[%clk 0:02:23]} 19. Rxd8+ {[%clk 0:02:47]}  Qxd8 {[%clk 0:02:23]} 20. Rd1 {[%clk 0:02:43]}  Qc7 {[%clk 0:02:21]} 21. Ra1 {[%clk 0:02:43]}  Rb6 {[%clk 0:01:55]} 22. Ra8 {[%clk 0:02:36]}  Kh7 {[%clk 0:01:53]} 23. Ra1 {[%clk 0:02:35]}  Bb7 {[%clk 0:01:53]} 24. Kf1 {[%clk 0:02:25]}  Nb8 {[%clk 0:01:47]} 25. Nd2 {[%clk 0:02:20]}  Nd7 {[%clk 0:01:47]} 26. f4 {[%clk 0:02:15]}  c4 {[%clk 0:01:44]} 27. e5 {[%clk 0:02:06]}  Nc5 {[%clk 0:01:03]} 28. Bf3 {[%clk 0:02:05]}  Ra6 {[%clk 0:00:54]} 29. Rxa6 {[%clk 0:02:02]}  Bxa6 {[%clk 0:00:55]} 30. Ne4 {[%clk 0:01:57]}  Nd3 {[%clk 0:00:34]} 31. Nf2 {[%clk 0:01:49]}  b4 {[%clk 0:00:32]} 32. Be2 {[%clk 0:01:45]}  Qb6 {[%clk 0:00:28]} 33. Qd2 {[%clk 0:01:42]}  bxc3 {[%clk 0:00:27]} 34. bxc3 {[%clk 0:01:41]}  Qb1+ {[%clk 0:00:21]} 35. Ned1 {[%clk 0:01:34]}  Bf8 {[%clk 0:00:21]} 36. Ne4 {[%clk 0:01:20]}  Be7 {[%clk 0:00:18]} 37. Nf6+ {[%clk 0:01:14]}  Kg7 {[%clk 0:00:15]} 38. Ng4 {[%clk 0:01:10]}  Bb7 {[%clk 0:00:14]} 39. f5 {[%clk 0:01:06]}  Bg5 {[%clk 0:00:08]} 40. f6+ {[%clk 0:01:05]}  Kh7 {[%clk 0:00:08]} 41. Ne3 {[%clk 0:01:00]}  Qb5 {[%clk 0:00:03]} 42. Nxc4 {[%clk 0:00:56]}  Bxd2 {[%clk 0:00:02]} 43. Bxd3 {[%clk 0:00:55]}  Qd5 {[%clk 0:00:02]} 44. Nf2 {[%clk 0:00:50]}  Qxg2+ {[%clk 0:00:02]} 45. Ke2 {[%clk 0:00:50]}  Bg5 {[%clk 0:00:02]} 46. Nd6 {[%clk 0:00:42]}  Bf3+ {[%clk 0:00:03]} 47. Ke1 {[%clk 0:00:42]}  Qg1+ {[%clk 0:00:03]} 48. Bf1 {[%clk 0:00:41]}  Bg2 {[%clk 0:00:04]} 49. Ke2 {[%clk 0:00:42]}  Qxf1# {[%clk 0:00:04]} 0-1


[Site "https://www.chess.com"]

[Event "Titled Tuesday Blitz February 07 Late 2023"]
[White "Starozhilov, Leonid"]
[Black "Vega Gutierrez, Sabrina"]
[WhiteFideId "14106752"]
[BlackFideId "2219026"]
[WhiteElo "2313"]
[BlackElo "2377"]
[Result "0-1"]
[Round "06"]
[TimeControl "180+2"]
[Date "2023.02.07"]
[WhiteClock "0:00:03"]
[BlackClock "0:00:05"]

1. e4 {[%clk 0:02:55]}  c5 {[%clk 0:03:00]} 2. Nf3 {[%clk 0:02:55]}  e6 {[%clk 0:03:00]} 3. c4 {[%clk 0:02:54]}  Nc6 {[%clk 0:03:00]} 4. d4 {[%clk 0:02:54]}  cxd4 {[%clk 0:03:00]} 5. Nxd4 {[%clk 0:02:55]}  Nf6 {[%clk 0:02:58]} 6. Nc3 {[%clk 0:02:55]}  Bb4 {[%clk 0:02:57]} 7. Nxc6 {[%clk 0:02:55]}  dxc6 {[%clk 0:02:52]} 8. Qxd8+ {[%clk 0:02:55]}  Kxd8 {[%clk 0:02:53]} 9. e5 {[%clk 0:02:56]}  Bxc3+ {[%clk 0:02:32]} 10. bxc3 {[%clk 0:02:54]}  Nd7 {[%clk 0:02:32]} 11. f4 {[%clk 0:02:41]}  c5 {[%clk 0:02:30]} 12. a4 {[%clk 0:02:29]}  b6 {[%clk 0:02:30]} 13. a5 {[%clk 0:02:29]}  Bb7 {[%clk 0:02:30]} 14. Be2 {[%clk 0:02:18]}  f6 {[%clk 0:02:23]} 15. O-O {[%clk 0:02:08]}  Ke7 {[%clk 0:02:21]} 16. Be3 {[%clk 0:01:44]}  h6 {[%clk 0:01:44]} 17. Rfb1 {[%clk 0:01:32]}  Be4 {[%clk 0:01:28]} 18. Rd1 {[%clk 0:01:31]}  fxe5 {[%clk 0:01:23]} 19. fxe5 {[%clk 0:01:31]}  Nxe5 {[%clk 0:01:23]} 20. Bf4 {[%clk 0:01:28]}  Nf7 {[%clk 0:00:44]} 21. Bc7 {[%clk 0:01:23]}  bxa5 {[%clk 0:00:26]} 22. Rxa5 {[%clk 0:01:15]}  Rhc8 {[%clk 0:00:26]} 23. Rxc5 {[%clk 0:00:57]}  a5 {[%clk 0:00:25]} 24. Bb6 {[%clk 0:00:56]}  a4 {[%clk 0:00:23]} 25. Ra1 {[%clk 0:00:45]}  Rxc5 {[%clk 0:00:16]} 26. Bxc5+ {[%clk 0:00:46]}  Kd7 {[%clk 0:00:15]} 27. Bd4 {[%clk 0:00:29]}  g6 {[%clk 0:00:12]} 28. Bc5 {[%clk 0:00:22]}  Bc6 {[%clk 0:00:12]} 29. Bd3 {[%clk 0:00:20]}  Ne5 {[%clk 0:00:12]} 30. Be2 {[%clk 0:00:19]}  Rb8 {[%clk 0:00:11]} 31. Bb4 {[%clk 0:00:19]}  Rb7 {[%clk 0:00:11]} 32. Rd1+ {[%clk 0:00:19]}  Ke8 {[%clk 0:00:11]} 33. Kf2 {[%clk 0:00:17]}  Rf7+ {[%clk 0:00:10]} 34. Ke3 {[%clk 0:00:17]}  Bxg2 {[%clk 0:00:10]} 35. Rd6 {[%clk 0:00:16]}  Rf6 {[%clk 0:00:08]} 36. Ra6 {[%clk 0:00:13]}  Bf3 {[%clk 0:00:09]} 37. Ra8+ {[%clk 0:00:10]}  Bxa8 {[%clk 0:00:08]} 38. Bd1 {[%clk 0:00:08]}  h5 {[%clk 0:00:08]} 39. Bxa4+ {[%clk 0:00:08]}  Bc6 {[%clk 0:00:08]} 40. Bc2 {[%clk 0:00:07]}  Ng4+ {[%clk 0:00:08]} 41. Kd4 {[%clk 0:00:06]}  Nxh2 {[%clk 0:00:08]} 42. Ke5 {[%clk 0:00:07]}  Rf2 {[%clk 0:00:08]} 43. Bxg6+ {[%clk 0:00:06]}  Kd8 {[%clk 0:00:07]} 44. Kd6 {[%clk 0:00:06]}  Bb7 {[%clk 0:00:05]} 45. c5 {[%clk 0:00:04]}  Rd2+ {[%clk 0:00:05]} 46. Kxe6 {[%clk 0:00:04]}  Kc7 {[%clk 0:00:05]} 47. Ba5+ {[%clk 0:00:03]}  Kc6 {[%clk 0:00:05]} 48. Be4+ {[%clk 0:00:04]}  Kb5 {[%clk 0:00:06]} 49. Bxb7 {[%clk 0:00:01]}  Kxa5 {[%clk 0:00:05]} 50. c6 {[%clk 0:00:02]}  Kb6 {[%clk 0:00:05]} 51. c4 {[%clk 0:00:02]}  Kc7 {[%clk 0:00:05]} 52. c5 {[%clk 0:00:03]}  Ng4 {[%clk 0:00:05]} 53. Kf5 {[%clk 0:00:03]}  Rg2 {[%clk 0:00:05]} 54. Kg5 {[%clk 0:00:03]}  Nf6+ {[%clk 0:00:05]} 55. Kxf6 {[%clk 0:00:03]}  h4 {[%clk 0:00:05]} 56. Ba6 {[%clk 0:00:03]}  h3 {[%clk 0:00:05]} 57. Bf1 {[%clk 0:00:03]}  Rf2+ {[%clk 0:00:05]} 0-1


[Site "https://www.chess.com"]

[Event "Titled Tuesday Blitz February 07 Late 2023"]
[White "UnknownMagician"]
[Black "Mazurkiewicz, Michal"]
[BlackFideId "1124943"]
[WhiteElo "2696"]
[BlackElo "2145"]
[Result "1-0"]
[Round "06"]
[TimeControl "180+2"]
[Date "2023.02.07"]
[WhiteClock "0:01:45"]
[BlackClock "0:00:02"]

1. c4 {[%clk 0:03:00]}  Nf6 {[%clk 0:02:59]} 2. Nf3 {[%clk 0:03:00]}  g6 {[%clk 0:03:00]} 3. b3 {[%clk 0:02:59]}  Bg7 {[%clk 0:03:00]} 4. Bb2 {[%clk 0:02:59]}  O-O {[%clk 0:03:01]} 5. g3 {[%clk 0:03:00]}  d6 {[%clk 0:03:01]} 6. Bg2 {[%clk 0:02:59]}  c5 {[%clk 0:03:01]} 7. O-O {[%clk 0:02:59]}  Nc6 {[%clk 0:03:02]} 8. Nc3 {[%clk 0:02:59]}  Rb8 {[%clk 0:03:01]} 9. d4 {[%clk 0:02:51]}  cxd4 {[%clk 0:02:55]} 10. Nxd4 {[%clk 0:02:52]}  Nxd4 {[%clk 0:02:48]} 11. Qxd4 {[%clk 0:02:53]}  Ng4 {[%clk 0:02:48]} 12. Qd2 {[%clk 0:02:51]}  Qa5 {[%clk 0:02:48]} 13. Rfd1 {[%clk 0:02:45]}  Qh5 {[%clk 0:02:45]} 14. h3 {[%clk 0:02:41]}  Ne5 {[%clk 0:02:44]} 15. g4 {[%clk 0:02:40]}  Qh4 {[%clk 0:02:04]} 16. Nd5 {[%clk 0:02:39]}  Re8 {[%clk 0:01:46]} 17. f4 {[%clk 0:02:34]}  Nc6 {[%clk 0:01:03]} 18. Bxg7 {[%clk 0:02:34]}  Kxg7 {[%clk 0:01:04]} 19. Qc3+ {[%clk 0:02:29]}  f6 {[%clk 0:01:04]} 20. Rd3 {[%clk 0:02:19]}  e6 {[%clk 0:00:34]} 21. Nc7 {[%clk 0:02:12]}  Re7 {[%clk 0:00:30]} 22. Nb5 {[%clk 0:02:13]}  h5 {[%clk 0:00:28]} 23. g5 {[%clk 0:02:10]}  Qxf4 {[%clk 0:00:23]} 24. gxf6+ {[%clk 0:02:04]}  Qxf6 {[%clk 0:00:24]} 25. Qxf6+ {[%clk 0:02:03]}  Kxf6 {[%clk 0:00:25]} 26. Nxd6 {[%clk 0:02:01]}  Ke5 {[%clk 0:00:15]} 27. Rf1 {[%clk 0:02:02]}  Nb4 {[%clk 0:00:13]} 28. Rd2 {[%clk 0:01:56]}  Bd7 {[%clk 0:00:07]} 29. Nf7+ {[%clk 0:01:57]}  Rxf7 {[%clk 0:00:07]} 30. Rxf7 {[%clk 0:01:56]}  Bc6 {[%clk 0:00:07]} 31. a3 {[%clk 0:01:56]}  Bxg2 {[%clk 0:00:06]} 32. axb4 {[%clk 0:01:56]}  Bc6 {[%clk 0:00:06]} 33. b5 {[%clk 0:01:56]}  Be4 {[%clk 0:00:06]} 34. Kf2 {[%clk 0:01:53]}  g5 {[%clk 0:00:03]} 35. Ke3 {[%clk 0:01:51]}  Bf5 {[%clk 0:00:03]} 36. Rdd7 {[%clk 0:01:48]}  Bxh3 {[%clk 0:00:02]} 37. Rg7 {[%clk 0:01:45]} 1-0


[Site "https://www.chess.com"]

[Event "Titled Tuesday Blitz February 07 Late 2023"]
[White "Vlassov, Nikolai"]
[Black "Becerra, Juan David"]
[WhiteFideId "4103360"]
[BlackFideId "4404998"]
[WhiteElo "2283"]
[BlackElo "2382"]
[Result "0-1"]
[Round "06"]
[TimeControl "180+2"]
[Date "2023.02.07"]
[WhiteClock "0:00:02"]
[BlackClock "0:00:03"]

1. e4 {[%clk 0:03:00]}  c5 {[%clk 0:02:53]} 2. c3 {[%clk 0:02:59]}  d5 {[%clk 0:02:51]} 3. exd5 {[%clk 0:02:58]}  Qxd5 {[%clk 0:02:52]} 4. d4 {[%clk 0:02:58]}  cxd4 {[%clk 0:02:49]} 5. cxd4 {[%clk 0:02:58]}  Nc6 {[%clk 0:02:47]} 6. Nf3 {[%clk 0:02:57]}  Bg4 {[%clk 0:02:43]} 7. Nc3 {[%clk 0:02:57]}  Bxf3 {[%clk 0:02:39]} 8. gxf3 {[%clk 0:02:56]}  Qxd4 {[%clk 0:02:38]} 9. Qxd4 {[%clk 0:02:55]}  Nxd4 {[%clk 0:02:39]} 10. Nb5 {[%clk 0:02:55]}  Nc2+ {[%clk 0:02:27]} 11. Kd1 {[%clk 0:02:54]}  Nxa1 {[%clk 0:02:27]} 12. Nc7+ {[%clk 0:02:54]}  Kd8 {[%clk 0:02:14]} 13. Nxa8 {[%clk 0:02:54]}  Kc8 {[%clk 0:02:04]} 14. Bf4 {[%clk 0:02:46]}  Nf6 {[%clk 0:01:53]} 15. Bh3+ {[%clk 0:02:29]}  e6 {[%clk 0:01:53]} 16. Ke2 {[%clk 0:02:29]}  Nd5 {[%clk 0:01:49]} 17. Bg3 {[%clk 0:02:09]}  Kd7 {[%clk 0:01:48]} 18. Rxa1 {[%clk 0:01:53]}  Bd6 {[%clk 0:01:48]} 19. Rd1 {[%clk 0:01:51]}  Bxg3 {[%clk 0:00:49]} 20. Rxd5+ {[%clk 0:01:31]}  Bd6 {[%clk 0:00:49]} 21. Rb5 {[%clk 0:01:14]}  Kc6 {[%clk 0:00:47]} 22. Rg5 {[%clk 0:01:13]}  g6 {[%clk 0:00:44]} 23. f4 {[%clk 0:01:13]}  Rxa8 {[%clk 0:00:42]} 24. Bg2+ {[%clk 0:01:13]}  Kc7 {[%clk 0:00:42]} 25. Rb5 {[%clk 0:01:12]}  Rb8 {[%clk 0:00:42]} 26. Ke3 {[%clk 0:01:12]}  a6 {[%clk 0:00:36]} 27. Rb3 {[%clk 0:01:10]}  Bc5+ {[%clk 0:00:30]} 28. Ke2 {[%clk 0:01:09]}  b5 {[%clk 0:00:31]} 29. Rc3 {[%clk 0:01:06]}  Kb6 {[%clk 0:00:30]} 30. b4 {[%clk 0:00:40]}  Bxb4 {[%clk 0:00:30]} 31. Rc6+ {[%clk 0:00:40]}  Ka5 {[%clk 0:00:30]} 32. Rc7 {[%clk 0:00:40]}  Rf8 {[%clk 0:00:27]} 33. Rc6 {[%clk 0:00:33]}  Re8 {[%clk 0:00:22]} 34. Be4 {[%clk 0:00:29]}  Re7 {[%clk 0:00:21]} 35. Bd3 {[%clk 0:00:24]}  Rd7 {[%clk 0:00:21]} 36. a4 {[%clk 0:00:21]}  Rd6 {[%clk 0:00:17]} 37. axb5 {[%clk 0:00:17]}  axb5 {[%clk 0:00:18]} 38. Rc7 {[%clk 0:00:18]}  f5 {[%clk 0:00:16]} 39. Rxh7 {[%clk 0:00:17]}  Bc3 {[%clk 0:00:10]} 40. Rh6 {[%clk 0:00:14]}  e5 {[%clk 0:00:10]} 41. fxe5 {[%clk 0:00:09]}  Bxe5 {[%clk 0:00:11]} 42. h4 {[%clk 0:00:10]}  b4 {[%clk 0:00:10]} 43. h5 {[%clk 0:00:09]}  b3 {[%clk 0:00:10]} 44. Rxg6 {[%clk 0:00:06]}  Bf6 {[%clk 0:00:05]} 45. h6 {[%clk 0:00:04]}  b2 {[%clk 0:00:06]} 46. Bxf5 {[%clk 0:00:04]}  Rd5 {[%clk 0:00:04]} 47. Bb1 {[%clk 0:00:03]}  Bc3 {[%clk 0:00:03]} 48. h7 {[%clk 0:00:02]}  Rd2+ {[%clk 0:00:03]} 49. Ke3 {[%clk 0:00:02]}  Rd1 {[%clk 0:00:03]} 0-1


[Site "https://www.chess.com"]